[Event "Titled Tuesday Blitz January 18 2022"]
[White "Narayanan.S.L"]
[Black "Khumalo, Keith"]
[WhiteFideId "5058422"]
[BlackFideId "14319470"]
[WhiteElo "2494"]
[BlackElo "1992"]
[Result "1-0"]
[Round "02"]
[TimeControl "180+1"]
[Date "2022.01.18"]
[WhiteClock "0:01:31"]
[BlackClock "0:00:31"]

1. f4 {[%clk 0:02:58]}  Nf6 {[%clk 0:02:58]} 2. Nf3 {[%clk 0:02:57]}  g6 {[%clk 0:02:59]} 3. g3 {[%clk 0:02:57]}  Bg7 {[%clk 0:03:00]} 4. Bg2 {[%clk 0:02:58]}  O-O {[%clk 0:03:00]} 5. O-O {[%clk 0:02:59]}  c5 {[%clk 0:03:01]} 6. d3 {[%clk 0:03:00]}  d6 {[%clk 0:03:02]} 7. e4 {[%clk 0:03:00]}  Nc6 {[%clk 0:03:03]} 8. h3 {[%clk 0:03:01]}  Rb8 {[%clk 0:03:01]} 9. g4 {[%clk 0:03:01]}  b5 {[%clk 0:03:01]} 10. f5 {[%clk 0:03:02]}  c4 {[%clk 0:02:54]} 11. Nc3 {[%clk 0:03:00]}  cxd3 {[%clk 0:02:54]} 12. cxd3 {[%clk 0:03:00]}  Ne5 {[%clk 0:02:52]} 13. Be3 {[%clk 0:02:56]}  b4 {[%clk 0:02:51]} 14. Ne2 {[%clk 0:02:51]}  Ba6 {[%clk 0:02:50]} 15. Nf4 {[%clk 0:02:47]}  Nxf3+ {[%clk 0:02:49]} 16. Rxf3 {[%clk 0:02:47]}  Nd7 {[%clk 0:02:42]} 17. d4 {[%clk 0:02:47]}  Bb7 {[%clk 0:02:36]} 18. Rf2 {[%clk 0:02:45]}  Nf6 {[%clk 0:02:36]} 19. Qd3 {[%clk 0:02:45]}  Qa5 {[%clk 0:02:28]} 20. g5 {[%clk 0:02:29]}  Nd7 {[%clk 0:02:26]} 21. h4 {[%clk 0:02:28]}  Rfc8 {[%clk 0:02:23]} 22. h5 {[%clk 0:02:27]}  Nf8 {[%clk 0:02:18]} 23. fxg6 {[%clk 0:02:24]}  hxg6 {[%clk 0:02:19]} 24. hxg6 {[%clk 0:02:23]}  fxg6 {[%clk 0:02:20]} 25. Nd5 {[%clk 0:02:23]}  Bxd5 {[%clk 0:02:18]} 26. exd5 {[%clk 0:02:24]}  Qb5 {[%clk 0:02:15]} 27. Qe4 {[%clk 0:02:24]}  Re8 {[%clk 0:02:05]} 28. Bh3 {[%clk 0:02:23]}  e5 {[%clk 0:02:06]} 29. dxe6 {[%clk 0:02:23]}  d5 {[%clk 0:02:00]} 30. Qf3 {[%clk 0:02:23]}  Rb7 {[%clk 0:01:56]} 31. Rc1 {[%clk 0:01:56]}  Nxe6 {[%clk 0:01:54]} 32. Bxe6+ {[%clk 0:01:55]}  Rxe6 {[%clk 0:01:55]} 33. Rc8+ {[%clk 0:01:56]}  Re8 {[%clk 0:01:55]} 34. Rxe8+ {[%clk 0:01:56]}  Qxe8 {[%clk 0:01:56]} 35. Qxd5+ {[%clk 0:01:56]}  Rf7 {[%clk 0:01:56]} 36. Kf1 {[%clk 0:01:47]}  Kf8 {[%clk 0:01:52]} 37. Qd6+ {[%clk 0:01:43]}  Kg8 {[%clk 0:01:52]} 38. Qd5 {[%clk 0:01:39]}  Kf8 {[%clk 0:01:52]} 39. Qc5+ {[%clk 0:01:40]}  Kg8 {[%clk 0:01:52]} 40. d5 {[%clk 0:01:40]}  Bxb2 {[%clk 0:01:45]} 41. d6 {[%clk 0:01:38]}  Bc3 {[%clk 0:01:45]} 42. Qd5 {[%clk 0:01:35]}  Kf8 {[%clk 0:01:36]} 43. d7 {[%clk 0:01:35]}  Rxf2+ {[%clk 0:01:35]} 44. Bxf2 {[%clk 0:01:35]}  Qd8 {[%clk 0:01:33]} 45. Bc5+ {[%clk 0:01:32]}  Kg7 {[%clk 0:01:32]} 46. Qe6 {[%clk 0:01:33]}  Qxg5 {[%clk 0:01:08]} 47. Qe7+ {[%clk 0:01:33]}  Qxe7 {[%clk 0:01:08]} 48. Bxe7 {[%clk 0:01:34]}  b3 {[%clk 0:01:05]} 49. axb3 {[%clk 0:01:33]}  Ba5 {[%clk 0:01:05]} 50. d8=Q {[%clk 0:01:33]}  Bxd8 {[%clk 0:01:05]} 51. Bxd8 {[%clk 0:01:34]}  Kf7 {[%clk 0:01:05]} 52. Ke2 {[%clk 0:01:34]}  Ke6 {[%clk 0:01:05]} 53. Kd3 {[%clk 0:01:35]}  Kd5 {[%clk 0:01:06]} 54. Kc3 {[%clk 0:01:34]}  Kc5 {[%clk 0:01:06]} 55. Kb2 {[%clk 0:01:34]}  Kb4 {[%clk 0:01:06]} 56. Be7+ {[%clk 0:01:34]}  Kb5 {[%clk 0:01:06]} 57. Ka3 {[%clk 0:01:34]}  Kc6 {[%clk 0:00:58]} 58. Ka4 {[%clk 0:01:34]}  Kd5 {[%clk 0:00:58]} 59. b4 {[%clk 0:01:33]}  Kc6 {[%clk 0:00:47]} 60. Ka5 {[%clk 0:01:32]}  Kd5 {[%clk 0:00:31]} 61. Ka6 {[%clk 0:01:31]}  Kc4 {[%clk 0:00:31]} 62. b5 {[%clk 0:01:31]}  g5 {[%clk 0:00:31]} 63. Bxg5 {[%clk 0:01:31]} 1-0


[Site "https://www.chess.com"]

[Event "Titled Tuesday Blitz January 18 2022"]
[White "Nazari, Arad"]
[Black "Kraus, Tomas"]
[WhiteFideId "12577324"]
[BlackFideId "331708"]
[WhiteElo "2120"]
[BlackElo "2389"]
[Result "1-0"]
[Round "02"]
[TimeControl "180+1"]
[Date "2022.01.18"]
[WhiteClock "0:00:06"]
[BlackClock "0:00:01"]

1. Nf3 {[%clk 0:03:00]}  Nf6 {[%clk 0:02:59]} 2. g3 {[%clk 0:03:00]}  g6 {[%clk 0:02:58]} 3. Bg2 {[%clk 0:03:00]}  Bg7 {[%clk 0:02:57]} 4. O-O {[%clk 0:03:01]}  O-O {[%clk 0:02:56]} 5. c4 {[%clk 0:03:02]}  d6 {[%clk 0:02:56]} 6. Nc3 {[%clk 0:03:02]}  e5 {[%clk 0:02:55]} 7. d3 {[%clk 0:03:02]}  Nc6 {[%clk 0:02:47]} 8. a3 {[%clk 0:03:02]}  a5 {[%clk 0:02:46]} 9. Rb1 {[%clk 0:03:02]}  Bf5 {[%clk 0:02:38]} 10. b4 {[%clk 0:02:57]}  axb4 {[%clk 0:02:37]} 11. axb4 {[%clk 0:02:58]}  Qd7 {[%clk 0:02:37]} 12. Re1 {[%clk 0:02:56]}  Rfe8 {[%clk 0:02:31]} 13. Bg5 {[%clk 0:02:49]}  e4 {[%clk 0:02:27]} 14. Bxf6 {[%clk 0:02:36]}  exf3 {[%clk 0:01:50]} 15. Bxg7 {[%clk 0:02:33]}  fxe2 {[%clk 0:01:40]} 16. Nxe2 {[%clk 0:02:20]}  Kxg7 {[%clk 0:01:39]} 17. Qd2 {[%clk 0:02:09]}  Bg4 {[%clk 0:01:15]} 18. Qc3+ {[%clk 0:02:04]}  f6 {[%clk 0:01:13]} 19. Bxc6 {[%clk 0:01:57]}  bxc6 {[%clk 0:01:04]} 20. Nd4 {[%clk 0:01:53]}  c5 {[%clk 0:00:52]} 21. Nc2 {[%clk 0:01:34]}  Ra2 {[%clk 0:00:29]} 22. Ne3 {[%clk 0:01:27]}  Bf3 {[%clk 0:00:26]} 23. Nd5 {[%clk 0:00:54]}  Bxd5 {[%clk 0:00:12]} 24. cxd5 {[%clk 0:00:55]}  Qf5 {[%clk 0:00:12]} 25. Rf1 {[%clk 0:00:39]}  Ree2 {[%clk 0:00:12]} 26. Ra1 {[%clk 0:00:10]}  Rac2 {[%clk 0:00:08]} 27. Qb3 {[%clk 0:00:04]}  Rxf2 {[%clk 0:00:07]} 28. Qxc2 {[%clk 0:00:04]}  Rxc2 {[%clk 0:00:06]} 29. Rxf5 {[%clk 0:00:05]}  gxf5 {[%clk 0:00:07]} 30. b5 {[%clk 0:00:05]}  Rd2 {[%clk 0:00:06]} 31. Ra7 {[%clk 0:00:06]}  Rxd3 {[%clk 0:00:06]} 32. Rxc7+ {[%clk 0:00:07]}  Kg6 {[%clk 0:00:07]} 33. b6 {[%clk 0:00:07]}  Rb3 {[%clk 0:00:07]} 34. Rc6 {[%clk 0:00:07]}  c4 {[%clk 0:00:07]} 35. Rxd6 {[%clk 0:00:08]}  c3 {[%clk 0:00:07]} 36. Rc6 {[%clk 0:00:09]}  f4 {[%clk 0:00:05]} 37. gxf4 {[%clk 0:00:08]}  Kf5 {[%clk 0:00:05]} 38. d6 {[%clk 0:00:08]}  c2 {[%clk 0:00:05]} 39. d7 {[%clk 0:00:08]}  Rxb6 {[%clk 0:00:04]} 40. d8=Q {[%clk 0:00:06]}  Rxc6 {[%clk 0:00:02]} 41. Qd7+ {[%clk 0:00:07]}  Re6 {[%clk 0:00:03]} 42. Qd3+ {[%clk 0:00:07]}  Re4 {[%clk 0:00:03]} 43. Qxc2 {[%clk 0:00:04]}  Kxf4 {[%clk 0:00:04]} 44. Kg2 {[%clk 0:00:05]}  Re5 {[%clk 0:00:03]} 45. Qc7 {[%clk 0:00:05]}  h5 {[%clk 0:00:01]} 46. Qh7 {[%clk 0:00:05]}  Kg5 {[%clk 0:00:01]} 47. Qg7+ {[%clk 0:00:04]}  Kf5 {[%clk 0:00:02]} 48. Kf3 {[%clk 0:00:05]}  Ke6 {[%clk 0:00:02]} 49. Qg8+ {[%clk 0:00:05]}  Ke7 {[%clk 0:00:01]} 50. Kf4 {[%clk 0:00:05]}  Rg5 {[%clk 0:00:01]} 51. Qh7+ {[%clk 0:00:04]}  Ke6 {[%clk 0:00:01]} 52. h3 {[%clk 0:00:05]}  Re5 {[%clk 0:00:01]} 53. Qd3 {[%clk 0:00:05]}  Rg5 {[%clk 0:00:01]} 54. Qd8 {[%clk 0:00:05]}  Re5 {[%clk 0:00:01]} 55. Qe8+ {[%clk 0:00:05]}  Kd6 {[%clk 0:00:01]} 56. Qf7 {[%clk 0:00:06]} 1-0


[Site "https://www.chess.com"]

[Event "Titled Tuesday Blitz January 18 2022"]
[White "Nguyen Hong Nhung"]
[Black "Ezat, Mohamed"]
[WhiteFideId "12412201"]
[BlackFideId "10600906"]
[WhiteElo "1661"]
[BlackElo "2386"]
[Result "0-1"]
[Round "02"]
[TimeControl "180+1"]
[Date "2022.01.18"]
[WhiteClock "0:00:05"]
[BlackClock "0:00:17"]

1. e4 {[%clk 0:03:00]}  c6 {[%clk 0:02:59]} 2. d4 {[%clk 0:03:00]}  d5 {[%clk 0:02:59]} 3. f3 {[%clk 0:03:01]}  e6 {[%clk 0:02:58]} 4. Nc3 {[%clk 0:03:01]}  Bb4 {[%clk 0:02:57]} 5. Bf4 {[%clk 0:03:01]}  Nf6 {[%clk 0:02:55]} 6. Qd3 {[%clk 0:03:00]}  b6 {[%clk 0:02:56]} 7. Ne2 {[%clk 0:03:00]}  a5 {[%clk 0:02:55]} 8. a3 {[%clk 0:02:57]}  Be7 {[%clk 0:02:51]} 9. e5 {[%clk 0:02:30]}  Nfd7 {[%clk 0:02:50]} 10. h4 {[%clk 0:02:17]}  c5 {[%clk 0:02:44]} 11. h5 {[%clk 0:02:11]}  h6 {[%clk 0:02:40]} 12. Nb5 {[%clk 0:02:01]}  Nc6 {[%clk 0:02:38]} 13. g4 {[%clk 0:01:54]}  Ba6 {[%clk 0:02:36]} 14. a4 {[%clk 0:01:35]}  Rc8 {[%clk 0:02:27]} 15. Kf2 {[%clk 0:01:26]}  cxd4 {[%clk 0:02:23]} 16. Rc1 {[%clk 0:01:19]}  Ncxe5 {[%clk 0:02:20]} 17. Nc7+ {[%clk 0:01:05]}  Rxc7 {[%clk 0:02:12]} 18. Qxa6 {[%clk 0:01:06]}  d3 {[%clk 0:02:12]} 19. cxd3 {[%clk 0:01:03]}  O-O {[%clk 0:02:05]} 20. d4 {[%clk 0:01:00]}  Nc4 {[%clk 0:01:58]} 21. Bxc7 {[%clk 0:00:55]}  Qxc7 {[%clk 0:01:51]} 22. b3 {[%clk 0:00:56]}  Nc5 {[%clk 0:01:49]} 23. dxc5 {[%clk 0:00:39]}  Bxc5+ {[%clk 0:01:48]} 24. Kg2 {[%clk 0:00:38]}  Ne3+ {[%clk 0:01:42]} 25. Kh3 {[%clk 0:00:38]}  f5 {[%clk 0:01:40]} 26. g5 {[%clk 0:00:26]}  hxg5 {[%clk 0:01:35]} 27. f4 {[%clk 0:00:18]}  gxf4 {[%clk 0:01:16]} 28. Bg2 {[%clk 0:00:18]}  g5 {[%clk 0:01:08]} 29. Rxc5 {[%clk 0:00:10]}  Qxc5 {[%clk 0:00:58]} 30. Qb7 {[%clk 0:00:08]}  g4+ {[%clk 0:00:46]} 31. Kh2 {[%clk 0:00:08]}  f3 {[%clk 0:00:44]} 32. Rc1 {[%clk 0:00:04]}  Qd6+ {[%clk 0:00:44]} 33. Ng3 {[%clk 0:00:05]}  fxg2 {[%clk 0:00:42]} 34. Rc7 {[%clk 0:00:04]}  g1=Q+ {[%clk 0:00:16]} 35. Kxg1 {[%clk 0:00:04]}  Qxg3+ {[%clk 0:00:16]} 36. Kh1 {[%clk 0:00:05]}  Qg2# {[%clk 0:00:17]} 0-1


[Site "https://www.chess.com"]

[Event "Titled Tuesday Blitz January 18 2022"]
[White "Nigmatov, Ortik"]
[Black "Papp, Petra"]
[WhiteFideId "14202131"]
[BlackFideId "739049"]
[WhiteElo "2378"]
[BlackElo "2259"]
[Result "1-0"]
[Round "02"]
[TimeControl "180+1"]
[Date "2022.01.18"]
[WhiteClock "0:01:05"]
[BlackClock "0:00:04"]

1. e4 {[%clk 0:03:00]}  d6 {[%clk 0:02:58]} 2. d4 {[%clk 0:03:00]}  Nf6 {[%clk 0:02:58]} 3. Nc3 {[%clk 0:03:00]}  e5 {[%clk 0:02:58]} 4. Nf3 {[%clk 0:03:00]}  Nbd7 {[%clk 0:02:58]} 5. Bc4 {[%clk 0:03:00]}  Be7 {[%clk 0:02:58]} 6. O-O {[%clk 0:03:00]}  O-O {[%clk 0:02:58]} 7. a4 {[%clk 0:03:01]}  exd4 {[%clk 0:02:46]} 8. Qxd4 {[%clk 0:02:59]}  Nb6 {[%clk 0:02:45]} 9. Bb3 {[%clk 0:02:55]}  a5 {[%clk 0:01:47]} 10. h3 {[%clk 0:02:53]}  Nfd7 {[%clk 0:01:41]} 11. Bf4 {[%clk 0:02:40]}  Bf6 {[%clk 0:01:37]} 12. Qe3 {[%clk 0:02:30]}  Nc5 {[%clk 0:01:29]} 13. Rad1 {[%clk 0:02:14]}  Nxb3 {[%clk 0:01:28]} 14. cxb3 {[%clk 0:02:15]}  Qe7 {[%clk 0:01:24]} 15. Bxd6 {[%clk 0:02:10]}  cxd6 {[%clk 0:01:16]} 16. Qxb6 {[%clk 0:02:10]}  Be6 {[%clk 0:01:03]} 17. Rxd6 {[%clk 0:02:07]}  Ra6 {[%clk 0:00:58]} 18. Rxe6 {[%clk 0:02:01]}  Rxb6 {[%clk 0:00:43]} 19. Rxe7 {[%clk 0:02:00]}  Bxe7 {[%clk 0:00:44]} 20. Nd5 {[%clk 0:01:59]}  Re6 {[%clk 0:00:44]} 21. Re1 {[%clk 0:01:41]}  Bc5 {[%clk 0:00:44]} 22. Ng5 {[%clk 0:01:34]}  Re5 {[%clk 0:00:35]} 23. Nf3 {[%clk 0:01:31]}  Re6 {[%clk 0:00:27]} 24. Ng5 {[%clk 0:01:23]}  Rg6 {[%clk 0:00:27]} 25. h4 {[%clk 0:01:20]}  Re8 {[%clk 0:00:24]} 26. Kf1 {[%clk 0:01:16]}  h6 {[%clk 0:00:23]} 27. Nf3 {[%clk 0:01:16]}  b6 {[%clk 0:00:21]} 28. Nd2 {[%clk 0:01:14]}  Kh7 {[%clk 0:00:12]} 29. Nc4 {[%clk 0:01:13]}  Rc6 {[%clk 0:00:10]} 30. g4 {[%clk 0:01:10]}  f6 {[%clk 0:00:10]} 31. f3 {[%clk 0:01:10]}  Bd4 {[%clk 0:00:10]} 32. h5 {[%clk 0:01:09]}  Bc5 {[%clk 0:00:08]} 33. Rd1 {[%clk 0:01:09]}  Rce6 {[%clk 0:00:07]} 34. Nc7 {[%clk 0:01:08]}  R6e7 {[%clk 0:00:07]} 35. Nxe8 {[%clk 0:01:08]}  Rxe8 {[%clk 0:00:08]} 36. Rd7 {[%clk 0:01:08]}  Re6 {[%clk 0:00:06]} 37. Kg2 {[%clk 0:01:08]}  Kg8 {[%clk 0:00:05]} 38. Kf1 {[%clk 0:01:06]}  Kf8 {[%clk 0:00:04]} 39. Ke2 {[%clk 0:01:07]}  Kg8 {[%clk 0:00:04]} 40. Ne3 {[%clk 0:01:07]}  Bxe3 {[%clk 0:00:03]} 41. Kxe3 {[%clk 0:01:07]}  Rc6 {[%clk 0:00:03]} 42. Rb7 {[%clk 0:01:08]}  Kf8 {[%clk 0:00:02]} 43. Kf4 {[%clk 0:01:08]}  Rc2 {[%clk 0:00:02]} 44. Rxb6 {[%clk 0:01:08]}  Rxb2 {[%clk 0:00:03]} 45. Rb5 {[%clk 0:01:08]}  Rb1 {[%clk 0:00:03]} 46. Kf5 {[%clk 0:01:08]}  Kg8 {[%clk 0:00:03]} 47. Kg6 {[%clk 0:01:08]}  Kf8 {[%clk 0:00:03]} 48. Rb8+ {[%clk 0:01:08]}  Ke7 {[%clk 0:00:04]} 49. Kxg7 {[%clk 0:01:09]}  Rf1 {[%clk 0:00:03]} 50. Rb7+ {[%clk 0:01:08]}  Ke8 {[%clk 0:00:03]} 51. Kxf6 {[%clk 0:01:07]}  Rxf3+ {[%clk 0:00:03]} 52. Kg6 {[%clk 0:01:07]}  Re3 {[%clk 0:00:04]} 53. Kxh6 {[%clk 0:01:06]}  Rxe4 {[%clk 0:00:04]} 54. g5 {[%clk 0:01:07]}  Rg4 {[%clk 0:00:03]} 55. g6 {[%clk 0:01:07]}  Kf8 {[%clk 0:00:04]} 56. Rb8+ {[%clk 0:01:06]}  Ke7 {[%clk 0:00:04]} 57. g7 {[%clk 0:01:06]}  Kf7 {[%clk 0:00:04]} 58. Rf8+ {[%clk 0:01:04]}  Ke7 {[%clk 0:00:04]} 59. g8=Q {[%clk 0:01:05]} 1-0


[Site "https://www.chess.com"]

[Event "Titled Tuesday Blitz January 18 2022"]
[White "Obolenskikh, Dmitry"]
[Black "Piesik, Piotr"]
[WhiteFideId "4156013"]
[BlackFideId "1136194"]
[WhiteElo "2512"]
[BlackElo "2232"]
[Result "1-0"]
[Round "02"]
[TimeControl "180+1"]
[Date "2022.01.18"]
[WhiteClock "0:01:19"]
[BlackClock "0:01:43"]

1. Nf3 {[%clk 0:03:00]}  g6 {[%clk 0:02:59]} 2. e4 {[%clk 0:02:59]}  Bg7 {[%clk 0:03:00]} 3. d4 {[%clk 0:03:00]}  c6 {[%clk 0:03:00]} 4. Nc3 {[%clk 0:02:58]}  d6 {[%clk 0:03:01]} 5. h3 {[%clk 0:02:58]}  Nf6 {[%clk 0:03:01]} 6. Be3 {[%clk 0:02:57]}  O-O {[%clk 0:03:01]} 7. a4 {[%clk 0:02:51]}  Nbd7 {[%clk 0:03:01]} 8. Be2 {[%clk 0:02:49]}  e5 {[%clk 0:03:00]} 9. O-O {[%clk 0:02:49]}  Qe7 {[%clk 0:03:00]} 10. Re1 {[%clk 0:02:41]}  a5 {[%clk 0:02:57]} 11. Bc4 {[%clk 0:02:29]}  Nh5 {[%clk 0:02:55]} 12. Qd2 {[%clk 0:02:27]}  exd4 {[%clk 0:02:53]} 13. Nxd4 {[%clk 0:02:24]}  Nc5 {[%clk 0:02:49]} 14. Bg5 {[%clk 0:02:12]}  Nf6 {[%clk 0:02:36]} 15. Rad1 {[%clk 0:02:06]}  Rd8 {[%clk 0:02:34]} 16. Qf4 {[%clk 0:01:59]}  Ne6 {[%clk 0:02:26]} 17. Nxe6 {[%clk 0:01:58]}  Bxe6 {[%clk 0:02:26]} 18. Nd5 {[%clk 0:01:40]}  cxd5 {[%clk 0:02:05]} 19. exd5 {[%clk 0:01:40]}  Nh5 {[%clk 0:01:53]} 20. Bxe7 {[%clk 0:01:37]}  Nxf4 {[%clk 0:01:53]} 21. dxe6 {[%clk 0:01:37]}  Rdc8 {[%clk 0:01:48]} 22. exf7+ {[%clk 0:01:36]}  Kh8 {[%clk 0:01:48]} 23. Bb5 {[%clk 0:01:31]}  Rc7 {[%clk 0:01:43]} 24. Rxd6 {[%clk 0:01:19]} 1-0


[Site "https://www.chess.com"]

[Event "Titled Tuesday Blitz January 18 2022"]
[White "Onyshchuk, Volodymyr"]
[Black "Iskusnyh, Sergei"]
[WhiteFideId "14114038"]
[BlackFideId "4120027"]
[WhiteElo "2642"]
[BlackElo "2492"]
[Result "1-0"]
[Round "02"]
[TimeControl "180+1"]
[Date "2022.01.18"]
[WhiteClock "0:00:30"]
[BlackClock "0:00:06"]

1. g3 {[%clk 0:03:00]}  d5 {[%clk 0:02:59]} 2. Bg2 {[%clk 0:03:00]}  Nf6 {[%clk 0:02:59]} 3. d3 {[%clk 0:02:59]}  c6 {[%clk 0:02:59]} 4. b3 {[%clk 0:02:58]}  e5 {[%clk 0:02:58]} 5. Bb2 {[%clk 0:02:58]}  Bd6 {[%clk 0:02:57]} 6. Nd2 {[%clk 0:02:57]}  O-O {[%clk 0:02:57]} 7. e3 {[%clk 0:02:57]}  a5 {[%clk 0:02:55]} 8. a3 {[%clk 0:02:57]}  Qe7 {[%clk 0:02:54]} 9. Ne2 {[%clk 0:02:56]}  Re8 {[%clk 0:02:51]} 10. h3 {[%clk 0:02:55]}  Nbd7 {[%clk 0:02:51]} 11. O-O {[%clk 0:02:54]}  Nf8 {[%clk 0:02:52]} 12. e4 {[%clk 0:02:32]}  dxe4 {[%clk 0:02:47]} 13. dxe4 {[%clk 0:02:30]}  b6 {[%clk 0:02:41]} 14. Nc4 {[%clk 0:02:28]}  Bc7 {[%clk 0:02:40]} 15. Ne3 {[%clk 0:02:27]}  Be6 {[%clk 0:02:12]} 16. Nc1 {[%clk 0:02:21]}  Rad8 {[%clk 0:02:11]} 17. Qe2 {[%clk 0:02:21]}  Bc8 {[%clk 0:02:10]} 18. Nd3 {[%clk 0:02:19]}  b5 {[%clk 0:02:01]} 19. a4 {[%clk 0:02:13]}  b4 {[%clk 0:01:59]} 20. Rad1 {[%clk 0:02:07]}  g6 {[%clk 0:01:44]} 21. Nc4 {[%clk 0:02:06]}  N8d7 {[%clk 0:01:34]} 22. Qe3 {[%clk 0:02:02]}  Ba6 {[%clk 0:01:32]} 23. Rfe1 {[%clk 0:01:59]}  Bxc4 {[%clk 0:01:30]} 24. bxc4 {[%clk 0:01:59]}  Bd6 {[%clk 0:01:30]} 25. f4 {[%clk 0:01:58]}  exf4 {[%clk 0:01:25]} 26. gxf4 {[%clk 0:01:58]}  Nh5 {[%clk 0:01:22]} 27. e5 {[%clk 0:01:56]}  Bc7 {[%clk 0:01:20]} 28. c5 {[%clk 0:01:44]}  Qe6 {[%clk 0:01:04]} 29. Qf3 {[%clk 0:01:39]}  Nxc5 {[%clk 0:00:53]} 30. Nxc5 {[%clk 0:01:32]}  Bb6 {[%clk 0:00:53]} 31. Bd4 {[%clk 0:01:06]}  Qc4 {[%clk 0:00:31]} 32. Bf1 {[%clk 0:00:44]}  Qxc2 {[%clk 0:00:25]} 33. Bd3 {[%clk 0:00:38]}  Rxd4 {[%clk 0:00:17]} 34. Bxc2 {[%clk 0:00:37]}  Rxf4 {[%clk 0:00:15]} 35. Qxc6 {[%clk 0:00:33]}  Re6 {[%clk 0:00:11]} 36. Qc8+ {[%clk 0:00:32]}  Kg7 {[%clk 0:00:11]} 37. Kg2 {[%clk 0:00:30]}  Bxc5 {[%clk 0:00:08]} 38. Qxc5 {[%clk 0:00:30]}  Rh4 {[%clk 0:00:07]} 39. Rf1 {[%clk 0:00:29]}  Nf4+ {[%clk 0:00:06]} 40. Rxf4 {[%clk 0:00:29]}  Rxf4 {[%clk 0:00:06]} 41. Rf1 {[%clk 0:00:30]} 1-0


[Site "https://www.chess.com"]

[Event "Titled Tuesday Blitz January 18 2022"]
[White "Potapova, Margarita"]
[Black "Pultinevicius, Paulius"]
[WhiteFideId "14126869"]
[BlackFideId "12809390"]
[WhiteElo "2209"]
[BlackElo "2413"]
[Result "0-1"]
[Round "02"]
[TimeControl "180+1"]
[Date "2022.01.18"]
[WhiteClock "0:00:02"]
[BlackClock "0:00:58"]

1. d4 {[%clk 0:02:59]}  Nf6 {[%clk 0:02:59]} 2. c4 {[%clk 0:03:00]}  e6 {[%clk 0:02:59]} 3. Nc3 {[%clk 0:02:59]}  d5 {[%clk 0:02:53]} 4. Nf3 {[%clk 0:02:58]}  c6 {[%clk 0:02:51]} 5. Bg5 {[%clk 0:02:52]}  h6 {[%clk 0:02:49]} 6. Bxf6 {[%clk 0:02:43]}  Qxf6 {[%clk 0:02:50]} 7. e3 {[%clk 0:02:43]}  Nd7 {[%clk 0:02:49]} 8. Be2 {[%clk 0:02:43]}  g6 {[%clk 0:02:49]} 9. O-O {[%clk 0:02:44]}  Bg7 {[%clk 0:02:48]} 10. e4 {[%clk 0:02:35]}  dxe4 {[%clk 0:02:25]} 11. Nxe4 {[%clk 0:02:36]}  Qf4 {[%clk 0:02:25]} 12. Bd3 {[%clk 0:02:29]}  Nf6 {[%clk 0:02:24]} 13. Qe2 {[%clk 0:02:02]}  O-O {[%clk 0:02:22]} 14. Nc3 {[%clk 0:01:56]}  Qc7 {[%clk 0:02:12]} 15. Rad1 {[%clk 0:01:52]}  b6 {[%clk 0:02:10]} 16. Rfe1 {[%clk 0:01:36]}  Bb7 {[%clk 0:02:02]} 17. c5 {[%clk 0:01:37]}  Rad8 {[%clk 0:02:02]} 18. b4 {[%clk 0:01:35]}  a5 {[%clk 0:01:47]} 19. bxa5 {[%clk 0:01:32]}  bxc5 {[%clk 0:01:47]} 20. a6 {[%clk 0:01:32]}  cxd4 {[%clk 0:01:45]} 21. Na4 {[%clk 0:01:24]}  Ba8 {[%clk 0:01:43]} 22. Nc5 {[%clk 0:00:59]}  Nd5 {[%clk 0:01:41]} 23. g3 {[%clk 0:00:49]}  Nc3 {[%clk 0:01:40]} 24. Qc2 {[%clk 0:00:46]}  Qa7 {[%clk 0:01:41]} 25. Nb3 {[%clk 0:00:36]}  c5 {[%clk 0:01:38]} 26. Nfd2 {[%clk 0:00:33]}  Nxd1 {[%clk 0:01:29]} 27. Rxd1 {[%clk 0:00:34]}  e5 {[%clk 0:01:29]} 28. Qxc5 {[%clk 0:00:22]}  Qd7 {[%clk 0:01:28]} 29. Bf1 {[%clk 0:00:12]}  e4 {[%clk 0:01:25]} 30. Nc4 {[%clk 0:00:11]}  e3 {[%clk 0:01:22]} 31. Nxe3 {[%clk 0:00:10]}  Qe6 {[%clk 0:01:09]} 32. Ng2 {[%clk 0:00:08]}  Rfe8 {[%clk 0:01:06]} 33. a7 {[%clk 0:00:04]}  Qe4 {[%clk 0:01:04]} 34. Re1 {[%clk 0:00:02]}  Qb7 {[%clk 0:00:59]} 35. Rd1 {[%clk 0:00:02]}  d3 {[%clk 0:00:58]} 0-1


[Site "https://www.chess.com"]